bitfinex-derivatives/quotes_BTCF0:USTF0_20250806
["timestamp","ask_amount","ask_price","bid_price","bid_amount"]
[1754445768833,0.004,113880.0,113870.0,2.05856335]
[1754445769034,0.617,113880.0,113870.0,2.05856335]
[1754445769732,0.004,113880.0,113870.0,2.05856335]
[1754445769921,0.004,113880.0,113870.0,1.75856335]
[1754445770634,0.004,113880.0,113870.0,1.75656335]
[1754445770834,0.01,113880.0,113870.0,1.75656335]
[1754445771630,0.01,113880.0,113870.0,1.58093135]
[1754445772530,1e-07,113880.0,113870.0,2.19373135]
[1754445776135,1e-07,113880.0,113870.0,1.98816851]
[1754445781242,1e-07,113880.0,113870.0,1.62736851]
[1754445781441,1e-07,113880.0,113870.0,1.98816851]
[1754445788643,1e-07,113880.0,113870.0,2.5607679]
[1754445789350,0.6128,113890.0,113880.0,0.2236412]
[1754445789540,0.6128,113890.0,113880.0,1.84334869]
[1754445789943,0.6128,113890.0,113880.0,0.81240279]
[1754445790146,0.6128,113890.0,113880.0,1.84334869]
[1754445790350,0.6128,113890.0,113880.0,1.6858371]
[1754445790550,0.6158,113890.0,113880.0,1.6858371]
[1754445791244,0.6148,113890.0,113880.0,1.6858371]
[1754445791762,0.6188,113890.0,113880.0,1.6858371]
[1754445792050,0.006,113890.0,113880.0,1.6858371]
[1754445792552,0.005,113890.0,113880.0,1.6858371]
[1754445793453,0.005,113890.0,113880.0,1.84334869]
[1754445794653,0.005,113890.0,113880.0,1.27054974]
[1754445795355,0.005,113890.0,113880.0,1.53344974]
[1754445796050,0.005,113890.0,113880.0,1.37593815]
[1754445799354,0.005,113890.0,113880.0,1.58150099]
[1754445800454,0.005,113890.0,113880.0,1.37593815]
[1754445802451,0.006,113890.0,113880.0,1.37593815]
[1754445802756,0.003,113890.0,113880.0,1.37593815]
[1754445802949,0.004,113890.0,113880.0,0.9177912]
[1754445803145,0.003,113890.0,113880.0,1.37593815]
[1754445806564,0.003,113890.0,113880.0,1.58150099]
[1754445807066,0.003,113890.0,113880.0,1.12335404]
[1754445807257,0.003,113890.0,113880.0,1.58150099]
[1754445807764,0.003,113890.0,113880.0,1.37593815]
[1754445811461,0.003,113890.0,113880.0,1.58150099]
[1754445811659,0.61448,113890.0,113880.0,1.58150099]
[1754445811964,0.61448,113890.0,113880.0,1.12335404]
[1754445812366,0.61444,113890.0,113880.0,1.12335404]
[1754445812666,0.61444,113890.0,113880.0,0.9177912]
[1754445813168,0.61444,113890.0,113880.0,0.6548912]
[1754445814956,0.61444,113890.0,113880.0,0.86045404]
[1754445815160,0.61432,113890.0,113880.0,0.86045404]
[1754445815867,0.61432,113890.0,113880.0,1.31860099]
[1754445816259,0.61432,113890.0,113880.0,0.49965404]
[1754445816260,1.1507358,113890.0,113880.0,0.49965404]
[1754445816460,0.61432,113890.0,113880.0,0.49965404]
[1754445816664,1.49065476,113890.0,113880.0,1.0151888]
[1754445817064,1.12985476,113890.0,113880.0,1.0151888]
[1754445817268,1.49065476,113890.0,113880.0,1.0151888]
[1754445817569,1.49065476,113890.0,113880.0,0.80962596]
[1754445817966,1.66627056,113890.0,113880.0,0.2940912]
[1754445818174,1.66627056,113890.0,113880.0,0.2938112]
[1754445818469,1.66627056,113890.0,113880.0,0.80934596]
[1754445818672,1.66627056,113890.0,113880.0,0.45171073]
[1754445818866,1.66627056,113890.0,113880.0,0.40508073]
[1754445819662,1.66627056,113890.0,113880.0,0.2471812]
[1754445822072,1.66627056,113890.0,113880.0,0.2938112]
[1754445824368,1.49065476,113890.0,113880.0,0.96724549]
[1754445824571,1.48865476,113890.0,113880.0,0.96724549]
[1754445824771,0.001,113890.0,113880.0,1.48478025]
[1754445825067,0.61204,113890.0,113880.0,1.48478025]
[1754445825263,0.001,113890.0,113880.0,1.32688072]
[1754445825470,0.61104,113890.0,113880.0,1.48974853]
[1754445826672,0.61104,113890.0,113880.0,0.91685269]
[1754445826972,0.61104,113890.0,113880.0,0.75898488]
[1754445827867,2.0364007,113900.0,113890.0,0.1756158]
[1754445828071,2.47176,113900.0,113890.0,0.2934158]
[1754445828572,1.5,113900.0,113890.0,0.2934158]
[1754445828778,2.11092,113900.0,113890.0,1.11238948]
[1754445829283,2.11092,113900.0,113890.0,1.11638948]
[1754445829472,2.11092,113900.0,113890.0,0.45728361]
[1754445829674,2.11092,113900.0,113890.0,0.81808361]
[1754445830576,2.11092,113900.0,113890.0,0.45728361]
[1754445831874,2.2865203,113900.0,113890.0,0.45728361]
[1754445832579,2.11092,113900.0,113890.0,0.45728361]
[1754445833879,2.11092,113900.0,113890.0,0.81808361]
[1754445834478,2.11092,113900.0,113890.0,0.45728361]
[1754445835979,2.11092,113900.0,113890.0,0.2994158]
[1754445836378,2.2865203,113900.0,113890.0,0.2994158]
[1754445836680,2.6473203,113900.0,113890.0,0.2994158]
[1754445837277,2.6473203,113900.0,113890.0,0.2527858]
[1754445837482,3.10549398,113900.0,113890.0,0.2045158]
[1754445839181,2.6473203,113900.0,113890.0,0.2045158]
[1754445839383,2.6473203,113900.0,113890.0,0.2760858]
[1754445839782,2.6473203,113900.0,113890.0,0.2620858]
[1754445840282,3.10549398,113900.0,113890.0,0.2620858]
[1754445840678,3.10549398,113900.0,113890.0,0.2298358]
[1754445840881,3.10549398,113900.0,113890.0,0.2045158]
[1754445843984,3.10549398,113900.0,113890.0,0.2298358]
[1754445844185,3.10549398,113900.0,113890.0,0.2843258]
[1754445844587,3.10549398,113900.0,113890.0,0.2983258]
[1754445846680,3.16283172,113900.0,113890.0,0.81383722]
[1754445847186,3.16283172,113900.0,113890.0,0.2983258]
[1754445847386,3.16283172,113900.0,113890.0,0.81383722]
[1754445849389,2.6473203,113900.0,113890.0,0.81383722]
[1754445849782,3.16283172,113900.0,113890.0,0.81383722]
[1754445850894,3.16283172,113900.0,113890.0,0.2298358]
[1754445851086,3.16283172,113900.0,113890.0,0.2045158]
[1754445852090,3.16283172,113900.0,113890.0,0.36238361]
[1754445853392,3.16283172,113900.0,113890.0,0.33948361]
[1754445853693,3.46283172,113900.0,113890.0,0.006]
[1754445853895,4.15394314,113900.0,113890.0,0.006]
[1754445854293,3.63843172,113900.0,113890.0,0.006]
[1754445855284,3.63843172,113900.0,113870.0,0.44514521]
[1754445855486,1.41274252,113880.0,113870.0,0.44514521]
[1754445855788,2.02282252,113880.0,113870.0,0.44514521]
[1754445856396,2.53833394,113880.0,113870.0,0.44514521]
[1754445856896,1.96577735,113880.0,113870.0,0.44514521]
[1754445857092,1.96577735,113880.0,113870.0,0.37941391]
[1754445857797,1.96577735,113880.0,113870.0,0.2453661]
[1754445859703,1.96577735,113880.0,113870.0,0.2433661]
[1754445859997,1.96777735,113880.0,113870.0,0.2433661]
[1754445861100,1.96777735,113880.0,113870.0,0.1994548]
[1754445863292,1.96777735,113880.0,113870.0,0.1756348]
[1754445864898,1.96777735,113880.0,113870.0,0.1986548]
[1754445868705,1.96777735,113880.0,113870.0,0.1756348]
[1754445869299,1.96777735,113880.0,113870.0,0.1986548]
[1754445870098,0.1756466,113870.0,113860.0,0.2634775]
[1754445870304,0.99491285,113870.0,113860.0,0.2864975]
[1754445871101,0.99491285,113870.0,113860.0,0.2425839]
[1754445871304,0.99491285,113870.0,113860.0,0.2435839]
[1754445872804,0.99491285,113870.0,113860.0,0.2455839]
[1754445874508,1.00394792,113870.0,113860.0,0.2455839]
[1754445875209,1.00394792,113870.0,113860.0,0.3049639]
[1754445875905,1.00394792,113870.0,113860.0,0.3199339]
[1754445876405,1.00394792,113870.0,113860.0,0.3429639]
[1754445878706,1.06126394,113870.0,113860.0,0.3429639]
[1754445881008,1.06126394,113870.0,113860.0,0.2933339]
[1754445881208,1.06126394,113870.0,113860.0,0.3429639]
[1754445882105,1.06126394,113870.0,113860.0,0.3279939]
[1754445882308,1.06126394,113870.0,113860.0,0.2933339]
[1754445882700,1.00402317,113870.0,113860.0,0.2933339]
[1754445883907,1.00402317,113870.0,113860.0,0.003]
[1754445884112,1.00402317,113870.0,113860.0,0.1786621]
[1754445885007,1.00402317,113870.0,113860.0,0.003]
[1754445885301,1.00402317,113870.0,113860.0,0.2016821]
[1754445890912,1.61326317,113870.0,113860.0,0.2990621]
[1754445892308,1.61326317,113870.0,113860.0,0.2840921]
[1754445893914,1.61326317,113870.0,113860.0,0.2016821]
[1754445894917,1.61326317,113870.0,113860.0,0.02602]
[1754445897919,1.61326317,113870.0,113860.0,0.003]
[1754445903122,0.175662,113860.0,113850.0,0.02394]
[1754445903317,0.9950035,113860.0,113850.0,0.02394]
[1754445903714,0.8193415,113860.0,113830.0,0.2635501]
[1754445904025,0.9950344,113840.0,113830.0,0.54003791]
[1754445904728,0.9950344,113840.0,113830.0,0.3821701]
[1754445905123,0.9990344,113840.0,113830.0,0.3821701]
[1754445906527,1.0010344,113840.0,113830.0,0.3821701]
[1754445906728,1.05860964,113840.0,113830.0,0.3821701]
[1754445912628,1.41940964,113840.0,113830.0,0.07164]
[1754445912834,1.41940964,113840.0,113830.0,0.2473483]
[1754445913127,1.41940964,113840.0,113830.0,0.07164]
[1754445913325,1.41940964,113840.0,113830.0,0.2793683]
[1754445913822,1.41940964,113840.0,113830.0,0.2943283]
[1754445914327,1.41940964,113840.0,113830.0,0.02394]
[1754445915730,1.41940964,113840.0,113830.0,0.1996483]
[1754445916637,1.41940964,113840.0,113830.0,0.2570883]
[1754445916835,1.41940964,113840.0,113830.0,0.2943283]
[1754445921726,0.9032929,113840.0,113830.0,0.2943283]
[1754445921930,1.41940964,113840.0,113830.0,0.2943283]
[1754445922534,0.9032929,113840.0,113830.0,0.2943283]
[1754445922834,0.7276,113840.0,113830.0,0.2943283]
[1754445923034,0.97516,113840.0,113830.0,0.81044504]
[1754445923444,1.49127674,113840.0,113830.0,0.81044504]
[1754445924734,1.49127674,113840.0,113830.0,0.2943283]
[1754445924735,0.3668,113840.0,113830.0,0.2943283]
[1754445924933,0.97512,113840.0,113830.0,0.2943283]
[1754445925140,1.1508129,113840.0,113830.0,0.2943283]
[1754445927247,0.97512,113840.0,113830.0,0.2943283]
[1754445927749,1.1508129,113840.0,113830.0,0.2943283]
[1754445928836,0.5424929,113840.0,113830.0,0.2943283]
[1754445929043,1.1506929,113840.0,113830.0,0.2943283]
[1754445929947,1.1506929,113840.0,113830.0,0.45219611]
[1754445930146,2.6506929,113840.0,113830.0,0.45219611]
[1754445931845,3.10937197,113840.0,113830.0,0.45219611]
[1754445932447,3.10937197,113840.0,113830.0,0.2943283]
[1754445934051,2.6506929,113840.0,113830.0,0.2943283]
[1754445934237,3.10937197,113840.0,113830.0,0.2943283]
[1754445935250,3.10537197,113840.0,113830.0,0.2943283]
[1754445935548,3.10537197,113840.0,113830.0,0.2953283]
[1754445936358,3.10537197,113840.0,113830.0,0.45319611]
[1754445936743,3.10337197,113840.0,113830.0,0.45319611]
[1754445937551,3.10337197,113840.0,113830.0,0.45519611]
[1754445937751,3.10309197,113840.0,113830.0,0.45519611]
[1754445938747,3.10309197,113840.0,113830.0,0.2026483]
[1754445939247,3.10309197,113840.0,113830.0,0.2956583]
[1754445943751,3.10309197,113840.0,113830.0,0.45352611]
[1754445944659,3.1604797,113840.0,113830.0,0.45352611]
[1754445948254,2.6444129,113840.0,113830.0,0.45352611]
[1754445948561,3.1604797,113840.0,113830.0,0.45352611]
[1754445950862,2.6444129,113840.0,113830.0,0.45352611]
[1754445951061,3.1604797,113840.0,113830.0,0.45352611]
[1754445953460,2.5525597,113840.0,113830.0,0.45352611]
[1754445953656,3.1600797,113840.0,113830.0,0.96959291]
[1754445955463,3.1600797,113840.0,113830.0,0.45352611]
[1754445955664,3.1600797,113840.0,113830.0,0.96959291]
[1754445955964,3.1600797,113840.0,113830.0,0.45352611]
[1754445957160,2.5525597,113840.0,113830.0,0.45352611]
[1754445957368,3.1600397,113840.0,113830.0,0.45352611]
[1754445957663,2.6439729,113840.0,113830.0,0.45352611]
[1754445957851,3.1600397,113840.0,113830.0,0.45352611]
[1754445958364,2.5525597,113840.0,113830.0,0.45352611]
[1754445958567,3.1599597,113840.0,113830.0,0.45352611]
[1754445958960,3.1599597,113840.0,113830.0,0.2956583]
[1754445959667,2.6438929,113840.0,113830.0,0.2956583]
[1754445959866,3.1599597,113840.0,113830.0,0.2956583]
[1754445960668,3.1599597,113840.0,113830.0,0.2810983]
[1754445960867,3.1599597,113840.0,113830.0,0.2493683]
[1754445961085,3.1599597,113840.0,113830.0,0.2026483]
[1754445961366,3.1599597,113840.0,113830.0,0.2029183]
[1754445962167,2.5525597,113840.0,113830.0,0.2009183]
[1754445962369,3.1598797,113840.0,113830.0,0.1999183]
[1754445962665,3.1598797,113840.0,113830.0,0.2019183]
[1754445962865,3.1598797,113840.0,113830.0,0.1777083]
[1754445963062,4.0367465,113840.0,113830.0,0.002]
[1754445963263,3.5206797,113840.0,113830.0,0.002]
[1754445969674,4.0367465,113840.0,113830.0,0.002]
[1754445984678,4.0367465,113840.0,113830.0,0.0267]
[1754445987681,3.8610536,113840.0,113810.0,0.2635939]
[1754445987980,3.8610536,113840.0,113810.0,0.3164098]
[1754445987981,1.5686574,113820.0,113810.0,0.3164098]
[1754445988279,1.5686574,113820.0,113810.0,0.3411098]
[1754445988280,2.1753774,113820.0,113810.0,0.3411098]
[1754445988479,2.1753774,113820.0,113810.0,0.2971768]
[1754445988686,1.1432438,113820.0,113810.0,0.2971768]
[1754445988883,2.1753774,113820.0,113810.0,0.2971768]
[1754445989178,2.1753774,113820.0,113810.0,0.3001768]
[1754445990273,2.1753774,113820.0,113810.0,0.0277]
[1754445990479,2.18444643,113820.0,113810.0,0.0277]
[1754445990679,2.18444643,113820.0,113810.0,0.2285092]
[1754445990978,2.18444643,113820.0,113810.0,0.3001892]
[1754445991175,2.18444643,113820.0,113810.0,0.3021892]
[1754445991784,1.15231283,113820.0,113810.0,0.3021892]
[1754445991980,1.66837963,113820.0,113810.0,0.3021892]
[1754445992280,2.18444643,113820.0,113810.0,0.3021892]
[1754445996889,2.18444643,113820.0,113810.0,0.3001892]
[1754445997786,2.18544643,113820.0,113810.0,0.2971892]
[1754445998792,1.6122908,113820.0,113810.0,0.2971892]
[1754446000490,1.6122908,113820.0,113810.0,0.2834992]
[1754446000892,1.6122908,113820.0,113810.0,0.2486692]
[1754446002497,1.6122908,113820.0,113810.0,0.2834992]
[1754446002691,1.6122908,113820.0,113810.0,0.2971892]
[1754446005499,1.6122908,113820.0,113810.0,0.2834992]
[1754446005692,1.6122908,113820.0,113810.0,0.2486692]
[1754446006394,0.1757392,113810.0,113800.0,0.46542451]
[1754446006695,0.99551717,113810.0,113800.0,0.58687451]
[1754446007797,0.99551717,113810.0,113800.0,0.4290067]
[1754446008298,0.99551717,113810.0,113800.0,0.4300067]
[1754446008593,0.99551717,113810.0,113800.0,0.4310067]
[1754446009200,0.99551717,113810.0,113800.0,0.3870683]
[1754446009391,0.99551717,113810.0,113800.0,0.3860683]
[1754446009695,0.99651717,113810.0,113800.0,0.3850683]
[1754446010299,0.99651717,113810.0,113800.0,0.23079781]
[1754446010499,0.99651717,113810.0,113800.0,0.18256781]
[1754446010995,0.99651717,113810.0,113800.0,0.0247]
[1754446012399,0.1757546,113800.0,113790.0,0.15786781]
[1754446012594,0.1757701,113790.0,113780.0,0.18125781]
[1754446012897,0.99554807,113790.0,113780.0,0.18125781]
[1754446013400,0.99554807,113790.0,113780.0,0.02339]
[1754446013600,0.99554807,113790.0,113780.0,0.02539]
[1754446013794,1.06597492,113790.0,113780.0,0.02839]
[1754446014392,1.06597492,113790.0,113780.0,0.2041756]
[1754446015896,1.06597492,113790.0,113780.0,0.02539]
[1754446016096,1.06797492,113790.0,113780.0,0.02539]
[1754446016900,1.06897492,113790.0,113780.0,0.02339]
[1754446017798,1.06897492,113790.0,113780.0,0.1991756]
[1754446018196,1.06897492,113790.0,113780.0,0.02339]
[1754446020204,1.06897492,113790.0,113780.0,0.1991755]
[1754446021098,1.06897492,113790.0,113770.0,0.246328]
[1754446021099,0.1757855,113780.0,113770.0,0.246328]
[1754446021394,1.60180347,113780.0,113770.0,0.07054]
[1754446022298,1.60180347,113780.0,113770.0,0.02339]
[1754446022604,1.60280347,113780.0,113770.0,0.02339]
[1754446028110,1.60280347,113780.0,113770.0,0.199191]
[1754446028312,1.60280347,113780.0,113770.0,0.09865]
[1754446028711,1.60280347,113780.0,113770.0,0.274451]
[1754446028911,1.60280347,113780.0,113770.0,0.09865]
[1754446029212,1.60280347,113780.0,113770.0,0.12025]
[1754446029506,0.5375855,113780.0,113770.0,0.261091]
[1754446029712,1.1437455,113780.0,113770.0,0.296051]
[1754446029906,1.60272347,113780.0,113770.0,0.296051]
[1754446030509,0.99656347,113780.0,113770.0,0.296051]
[1754446030815,0.96796,113780.0,113770.0,0.296051]
[1754446031007,1.1437455,113780.0,113770.0,0.296051]
[1754446031714,1.60172347,113780.0,113770.0,0.296051]
[1754446032014,1.60172347,113780.0,113770.0,0.298051]
[1754446036111,1.60164347,113780.0,113770.0,0.298051]
[1754446037022,1.60164347,113780.0,113770.0,0.248341]
[1754446037204,1.60164347,113780.0,113770.0,0.02539]
[1754446037910,1.60164347,113780.0,113770.0,0.02439]
[1754446038212,1.60164347,113780.0,113770.0,0.02339]
[1754446038404,1.60264347,113780.0,113770.0,0.02339]
[1754446038918,1.60264347,113780.0,113770.0,0.1991909]
[1754446039616,1.60264347,113780.0,113770.0,0.02339]
[1754446042213,1.60264347,113780.0,113770.0,0.199191]
[1754446043023,1.60264347,113780.0,113770.0,0.02339]
[1754446043411,1.60264347,113780.0,113770.0,0.199191]
[1754446044923,1.60264347,113780.0,113770.0,0.225541]
[1754446045617,1.60264347,113780.0,113770.0,0.259841]
[1754446046925,1.60264347,113780.0,113770.0,0.295521]
[1754446050821,1.60264347,113780.0,113770.0,0.225541]
[1754446051024,1.60264347,113780.0,113770.0,0.175801]
[1754446051228,1.60264347,113780.0,113770.0,0.199871]
[1754446051821,1.1436655,113780.0,113770.0,0.199871]
[1754446052021,1.60264347,113780.0,113770.0,0.199871]
[1754446053431,1.60264347,113780.0,113770.0,0.234171]
[1754446054530,1.60264347,113780.0,113770.0,0.260451]
[1754446055832,1.60264347,113780.0,113770.0,0.226151]
[1754446056431,1.60264347,113780.0,113770.0,0.02407]
[1754446058935,1.60264347,113780.0,113770.0,0.199871]
[1754446060237,1.60264347,113780.0,113770.0,0.02407]
[1754446061641,0.175801,113770.0,113760.0,0.45400101]
[1754446061833,2.49557897,113770.0,113760.0,0.45400101]
[1754446062030,2.49557897,113770.0,113760.0,0.2961332]
[1754446062731,2.49557897,113770.0,113760.0,0.2971332]
[1754446063940,2.49557897,113770.0,113760.0,0.2981332]
[1754446064140,2.49557897,113770.0,113760.0,0.1778032]
[1754446064340,2.49557897,113770.0,113760.0,0.2018732]
[1754446064741,2.49557897,113770.0,113760.0,0.002]
[1754446065036,2.95455694,113770.0,113760.0,0.002]
[1754446065544,2.49557897,113770.0,113760.0,0.002]
[1754446065735,2.50440597,113770.0,113760.0,0.002]
[1754446065936,2.96338394,113770.0,113760.0,0.002]
[1754446066441,2.96338394,113770.0,113740.0,0.20644781]
[1754446066442,0.1758319,113750.0,113740.0,0.27819781]
[1754446066750,1.96204987,113750.0,113740.0,0.22961781]
[1754446067042,1.96204987,113750.0,113740.0,0.07175]
[1754446067944,1.96404987,113750.0,113740.0,0.07175]
[1754446069543,0.1758473,113740.0,113730.0,0.18193781]
[1754446069838,2.21154527,113740.0,113730.0,0.15786781]
[1754446070345,0.1758782,113720.0,113710.0,0.3257893]
[1754446070642,1.60129617,113720.0,113710.0,0.3257893]
[1754446070841,1.60129617,113720.0,113710.0,0.3841593]
[1754446071436,0.99865617,113720.0,113710.0,0.3841593]
[1754446071638,1.60433617,113720.0,113710.0,0.3841593]
[1754446071945,1.60433617,113720.0,113710.0,0.3401864]
[1754446072138,1.61033617,113720.0,113710.0,0.3411864]
[1754446072744,1.6140789,113720.0,113710.0,0.3401864]
[1754446073137,1.15510093,113720.0,113710.0,0.3401864]
[1754446073338,1.6140789,113720.0,113710.0,0.3401864]
[1754446073539,1.6110789,113720.0,113710.0,0.3411864]
[1754446073938,1.60233617,113720.0,113710.0,0.3411864]
[1754446074538,0.99665617,113720.0,113710.0,0.3411864]
[1754446074738,1.60233617,113720.0,113710.0,0.3411864]
[1754446075342,1.61136861,113720.0,113710.0,0.3411864]
[1754446079549,2.43114658,113720.0,113710.0,0.1768937]
[1754446079842,2.43114658,113720.0,113710.0,0.2002337]
[1754446080149,2.43014658,113720.0,113710.0,0.2002337]
[1754446080442,0.219903,113700.0,113690.0,0.3383928]
[1754446080645,1.64536097,113700.0,113690.0,0.3383928]
[1754446081545,1.68934077,113700.0,113690.0,0.3823727]
[1754446082950,1.68934077,113700.0,113690.0,0.3843727]
[1754446083653,1.68934077,113700.0,113690.0,0.3873727]
[1754446084259,1.68934077,113700.0,113690.0,0.3873327]
[1754446086740,0.6246828,113700.0,113690.0,0.3873327]
[1754446086946,1.64540097,113700.0,113690.0,0.3873327]
[1754446087443,1.186423,113700.0,113690.0,0.3873327]
[1754446087645,1.64540097,113700.0,113690.0,0.3873327]
[1754446088451,0.3608,113700.0,113690.0,0.3873327]
[1754446088658,0.5366937,113710.0,113700.0,0.4263339]
[1754446088957,0.7815737,113710.0,113700.0,0.4263339]
[1754446089455,1.1423737,113710.0,113700.0,0.4263339]
[1754446089655,1.1423737,113710.0,113700.0,0.4283339]
[1754446090448,0.7815737,113710.0,113700.0,0.4283339]
[1754446091149,0.58969414,113720.0,113710.0,0.2943937]
[1754446091457,1.65435211,113720.0,113710.0,0.2943937]
[1754446092259,1.65435211,113720.0,113710.0,0.2953937]
[1754446093953,0.97551244,113720.0,113710.0,0.2953937]
[1754446094261,1.15135074,113720.0,113710.0,0.2953937]
[1754446094653,0.97547244,113720.0,113710.0,0.2953937]
[1754446094850,0.5366628,113730.0,113720.0,0.2943783]
[1754446095162,1.1423028,113730.0,113720.0,0.2943783]
[1754446096659,1.1433028,113730.0,113720.0,0.2943783]
[1754446096854,1.15194693,113730.0,113720.0,0.2943783]
[1754446097463,0.54630693,113730.0,113720.0,0.2943783]
[1754446097764,0.001,113730.0,113720.0,0.2953783]
[1754446097962,0.6066,113730.0,113720.0,0.2953783]
[1754446098562,0.7814628,113730.0,113720.0,0.2963783]
[1754446098773,0.7814628,113730.0,113720.0,0.2973783]
[1754446101163,0.79040575,113730.0,113720.0,0.2973783]
[1754446101362,1.15120575,113730.0,113720.0,0.2973783]
[1754446102061,1.61018372,113730.0,113720.0,0.2973783]
[1754446102264,1.60124077,113730.0,113720.0,0.2973783]
[1754446102468,1.06457797,113730.0,113720.0,0.2973783]
[1754446102765,0.6056,113730.0,113720.0,0.2973783]
[1754446103273,0.7814628,113730.0,113720.0,0.2973783]
[1754446104364,0.6056,113730.0,113720.0,0.2973783]
[1754446105059,0.6056,113730.0,113720.0,0.2963783]
[1754446105268,0.6066,113730.0,113720.0,0.2953783]
[1754446106770,0.001,113730.0,113720.0,1.29102027]
[1754446106958,1.21592,113740.0,113730.0,0.2227028]
[1754446107268,1.21592,113740.0,113730.0,0.75432077]
[1754446107269,1.82132,113740.0,113730.0,0.75432077]
[1754446107458,0.6054,113740.0,113730.0,1.11512077]
[1754446108362,0.6064,113740.0,113730.0,1.11512077]
[1754446109365,0.6064,113740.0,113730.0,1.11712077]
[1754446110366,0.6054,113740.0,113730.0,1.12688515]
[1754446113670,0.6054,113740.0,113730.0,1.11812077]
[1754446114275,0.36966518,113760.0,113750.0,0.2953118]
[1754446114564,0.96604,113760.0,113750.0,0.2953118]
[1754446115064,1.60083437,113760.0,113750.0,0.2953118]
[1754446115261,1.60083437,113760.0,113750.0,0.2804218]
[1754446115462,1.60083437,113760.0,113750.0,0.2466118]
[1754446115768,1.60283437,113760.0,113750.0,0.2466118]
[1754446116781,1.61151526,113760.0,113750.0,0.2466118]
[1754446117874,1.61151526,113760.0,113750.0,0.1997718]
[1754446118080,1.61151526,113760.0,113750.0,0.1758318]
[1754446118268,0.1758319,113750.0,113740.0,0.3077115]
[1754446118467,0.99560987,113750.0,113740.0,0.3316515]
[1754446119375,0.99560987,113750.0,113740.0,0.4281915]
[1754446119579,0.99560987,113750.0,113740.0,0.3794915]
[1754446119872,0.99560987,113750.0,113740.0,0.3573315]
[1754446120683,0.99560987,113750.0,113740.0,0.3326515]
[1754446121177,0.5376319,113750.0,113740.0,0.3573315]
[1754446121378,0.99660987,113750.0,113740.0,0.3563315]
[1754446121882,0.99760987,113750.0,113740.0,0.3316515]
[1754446123380,0.99760987,113750.0,113740.0,0.2876909]
[1754446123583,0.99760987,113750.0,113740.0,0.2197917]
[1754446124586,0.99760987,113750.0,113740.0,0.2437317]
[1754446125484,0.99760987,113750.0,113740.0,0.2197917]
[1754446125682,0.1758473,113740.0,113730.0,0.3316853]
[1754446125980,1.60066527,113740.0,113730.0,0.3316853]
[1754446126180,1.60066527,113740.0,113730.0,0.2437551]
[1754446127473,1.60066527,113740.0,113730.0,0.19979]
[1754446127780,1.60066527,113740.0,113730.0,0.20179]
[1754446127981,1.60066527,113740.0,113730.0,0.2356]
[1754446128180,1.60066527,113740.0,113730.0,0.29733]
[1754446128380,1.1416873,113740.0,113730.0,0.29633]
[1754446128581,1.60166527,113740.0,113730.0,0.29533]
[1754446131286,1.60166527,113740.0,113730.0,0.24663]
[1754446131879,1.60166527,113740.0,113730.0,0.07078]
[1754446132085,1.60166527,113740.0,113730.0,0.2466428]
[1754446133685,0.1758628,113730.0,113720.0,0.3830045]
[1754446133882,0.99564077,113730.0,113720.0,0.3351045]
[1754446134588,0.1758783,113720.0,113710.0,0.40193421]
[1754446134882,1.60061627,113720.0,113710.0,0.35796121]
[1754446135185,1.60061627,113720.0,113710.0,0.02421]
[1754446135573,1.60061627,113720.0,113710.0,0.2001037]
[1754446135778,1.60161627,113720.0,113710.0,0.2031037]
[1754446136680,1.60061627,113720.0,113710.0,0.2021037]
[1754446137379,1.60061627,113720.0,113710.0,0.2001037]
[1754446138390,1.60061627,113720.0,113710.0,0.02421]
[1754446138687,1.60061627,113720.0,113710.0,0.2001037]
[1754446141387,1.60061627,113720.0,113710.0,0.2950937]
[1754446141586,0.3608,113720.0,113710.0,0.75407167]
[1754446142090,0.96576,113720.0,113710.0,0.75407167]
[1754446142591,0.6245821,113740.0,113730.0,0.2229528]
[1754446142790,1.68852007,113740.0,113730.0,0.2950628]
[1754446143582,0.3608,113750.0,113740.0,0.1758473]
[1754446143789,0.633466,113760.0,113750.0,0.2950319]
[1754446143992,1.69736397,113760.0,113750.0,0.2950319]
[1754446144684,1.238386,113760.0,113750.0,0.2950319]
[1754446144888,1.69736397,113760.0,113750.0,0.2950319]
[1754446145890,1.69736397,113760.0,113750.0,0.04939]
[1754446146094,0.1758473,113740.0,113730.0,0.2031959]
[1754446146295,1.42465797,113740.0,113730.0,0.4122254]
[1754446146491,1.42465797,113740.0,113730.0,0.4269454]
[1754446146697,1.60050527,113740.0,113730.0,0.4269454]
[1754446147298,0.99562527,113740.0,113730.0,0.4269454]
[1754446147494,1.60050527,113740.0,113730.0,0.4269454]
[1754446148296,0.96568,113740.0,113730.0,0.4269454]
[1754446148801,1.1415273,113740.0,113730.0,0.4269454]
[1754446149201,1.1415273,113740.0,113730.0,0.4299454]
[1754446150598,1.1415273,113740.0,113730.0,0.3859801]
[1754446151201,1.60050527,113740.0,113730.0,0.3859801]
[1754446152607,1.1415273,113740.0,113730.0,0.3859801]
[1754446152903,1.1415273,113740.0,113730.0,0.54384791]
[1754446155308,1.1415273,113740.0,113730.0,0.3859801]
[1754446156406,0.96568,113740.0,113730.0,0.3859801]
[1754446157009,1.1415273,113740.0,113730.0,0.3859801]
[1754446157408,0.96568,113740.0,113730.0,0.3859801]
[1754446158803,1.1415274,113740.0,113730.0,0.3859801]
[1754446159000,0.96568,113740.0,113730.0,0.3859801]
[1754446163006,1.1415273,113740.0,113730.0,0.3859801]
[1754446163408,1.60050527,113740.0,113730.0,0.3859801]
[1754446168210,1.60050527,113740.0,113730.0,0.2909901]
[1754446168412,1.60050527,113740.0,113730.0,0.44885791]
[1754446169008,1.60050527,113740.0,113730.0,0.52951791]
[1754446169209,1.60050527,113740.0,113730.0,0.3855301]
[1754446170012,1.60050527,113740.0,113730.0,0.54339791]
[1754446170316,1.1415273,113740.0,113730.0,0.54339791]
[1754446171003,1.1415273,113740.0,113730.0,0.3855301]
[1754446171920,1.60050527,113740.0,113730.0,0.3855301]
[1754446174316,1.60050527,113740.0,113730.0,0.2907501]
[1754446175121,1.60050527,113740.0,113730.0,0.3852901]
[1754446176721,1.60050527,113740.0,113730.0,0.3371801]
[1754446177016,1.60050527,113740.0,113730.0,0.2667801]
[1754446177221,1.60050527,113740.0,113730.0,0.2228148]
[1754446177920,1.60050527,113740.0,113730.0,0.2208148]
[1754446178124,1.60050527,113740.0,113730.0,0.2198148]
[1754446178621,1.60050527,113740.0,113730.0,0.2437848]
[1754446179125,1.60050527,113740.0,113730.0,0.1998195]
[1754446181225,0.1758628,113730.0,113720.0,0.44564631]
[1754446181424,0.99564077,113730.0,113720.0,0.44564631]
[1754446182116,0.99564077,113730.0,113720.0,0.2877785]
[1754446182317,0.99564077,113730.0,113720.0,0.2887785]
[1754446183119,0.99564077,113730.0,113720.0,0.2897785]
[1754446183524,0.99564077,113730.0,113720.0,0.2877785]